fUSD/lending_fUSD_20240714
["ID","MTS","AMOUNT","RATE_DAILY","PERIOD"]
[332078622,1720951858901,-548.16,0.00013863,2]
[332078623,1720951858911,-500.0,0.00013863,2]
[332078624,1720951858921,-500.0,0.00013863,2]
[332078625,1720951858930,-500.0,0.00013863,2]
[332078626,1720951858940,-513.31,0.00013863,2]
[332078627,1720951858952,-500.0,0.00013863,2]
[332078628,1720951858962,-500.0,0.00013863,2]
[332078629,1720951858972,-709.93,0.00013863,2]
[332078630,1720951858982,-2667.22,0.00013863,2]
[332078631,1720951858992,-736.7,0.00013863,2]
[332078632,1720951859002,-500.0,0.00013863,2]
[332078633,1720951859011,-647.01,0.00013863,2]
[332078634,1720951859021,-770.13,0.00013863,2]
[332078635,1720951859031,-973.96,0.00013863,2]
[332078636,1720951859041,-1534.07,0.00013863,2]
[332078637,1720951859051,-648.57,0.00013863,2]
[332078638,1720951859061,-500.0,0.00013863,2]
[332078639,1720951859070,-2978.27,0.00013863,2]
[332078640,1720951859080,-569.7,0.00013863,2]
[332078641,1720951859089,-500.0,0.00013863,2]
[332078642,1720951859098,-762.45,0.00013863,2]
[332078643,1720951859108,-500.0,0.00013863,2]
[332078644,1720951859117,-867.28,0.00013863,2]
[332078645,1720951859126,-500.0,0.00013863,2]
[332078646,1720951859136,-500.0,0.00013863,2]
[332078647,1720951859146,-500.0,0.00013863,2]
[332078648,1720951859155,-500.0,0.00013863,2]
[332078649,1720951859165,-1712.4,0.00013863,2]
[332078650,1720951859174,-838.29,0.00013863,2]
[332078651,1720951859184,-1049.04,0.00013863,2]
[332078652,1720951859194,-500.0,0.00013863,2]
[332078653,1720951859203,-1389.66,0.00013863,2]
[332078654,1720951859213,-500.0,0.00013863,2]
[332078655,1720951859222,-626.02,0.00013863,2]
[332078656,1720951859231,-769.02,0.00013863,2]
[332078657,1720951859241,-741.36,0.00013863,2]
[332078658,1720951859251,-500.0,0.00013863,2]
[332078659,1720951859260,-1080.56,0.00013863,2]
[332078660,1720951859270,-1654.9,0.00013863,2]
[332078661,1720951859279,-500.0,0.00013863,2]
[332078662,1720951859288,-5235.61,0.00013863,2]
[332078663,1720951859298,-1356.51,0.00013863,2]
[332078664,1720951859307,-544.94319487,0.00013863,2]
[332078665,1720951859316,-500.0,0.00013863,2]
[332078666,1720951859326,-1084.9,0.00013863,2]
[332078667,1720951859334,-693.27,0.00013863,2]
[332078668,1720951859343,-500.0,0.00013863,2]
[332078669,1720951859353,-664.02,0.00013863,2]
[332078670,1720951859364,-500.0,0.00013863,2]
[332078671,1720951859373,-880.76,0.00013863,2]
[332078672,1720951859382,-500.0,0.00013863,2]
[332078673,1720951859391,-766.66,0.00013863,2]
[332078674,1720951859401,-500.0,0.00013863,2]
[332078675,1720951859411,-602.75,0.00013863,2]
[332078676,1720951859421,-500.0,0.00013863,2]
[332078677,1720951859430,-725.45,0.00013863,2]
[332078678,1720951859440,-500.0,0.00013863,2]
[332078679,1720951859450,-500.0,0.00013863,2]
[332078680,1720951859460,-500.0,0.00013863,2]
[332078681,1720951859469,-1229.62,0.00013863,2]
[332078682,1720951859478,-500.0,0.00013863,2]
[332078683,1720951859487,-504.17,0.00013863,2]
[332078684,1720951859496,-961.65,0.00013863,2]
[332078685,1720951859505,-521.17,0.00013863,2]
[332078686,1720951859515,-686.28,0.00013863,2]
[332078687,1720951859525,-791.41,0.00013863,2]
[332078688,1720951859535,-500.0,0.00013863,2]
[332078689,1720951859544,-540.4,0.00013863,2]
[332078690,1720951859553,-705.37,0.00013863,2]
[332078691,1720951859563,-1110.66,0.00013863,2]
[332078692,1720951859572,-1284.09,0.00013863,2]
[332078693,1720951859582,-500.0,0.00013863,2]
[332078694,1720951859592,-699.23,0.00013863,2]
[332078695,1720951859603,-582.02,0.00013863,2]
[332078696,1720951859616,-979.12,0.00013863,2]
[332078697,1720951859626,-500.0,0.00013863,2]
[332078698,1720951859636,-630.72,0.00013863,2]
[332078699,1720951859645,-500.0,0.00013863,2]
[332078700,1720951859654,-688.76,0.00013863,2]
[332078701,1720951859664,-503.86,0.00013863,2]
[332078702,1720951859674,-500.0,0.00013863,2]
[332078703,1720951859684,-363.777,0.00013865,2]
[332078704,1720951859694,-152.82812024,0.00013875,2]
[332078705,1720951859703,-39380.96409457,0.0001388,2]
[332078706,1720951859713,-150.0,0.00013885,2]
[332078707,1720951859723,-500.0,0.00013887,2]
[332078708,1720951859732,-200.0,0.00013887,2]
[332078709,1720951859742,-150.0,0.00013887,2]
[332078710,1720951859752,-479.75080474,0.00013889,2]
[332078711,1720951859762,-400.0,0.00013889,2]
[332078712,1720951859771,-150.0,0.00013898,2]
[332078713,1720951859781,-462.23895013,0.00013899,2]
[332078714,1720951859791,-446.2531557,0.00013899,2]
[332078715,1720951859800,-163.21965492,0.000139,2]
[332078716,1720951859810,-59105.20535143,0.000139,2]
[332078717,1720951859819,-56323.7162853,0.000139,2]
[332078718,1720951859829,-561.4004999,0.000139,2]
[332078719,1720951859839,-1219.37202406,0.000139,2]
[332078720,1720951859849,-312.96071001,0.000139,2]
[332078721,1720951859859,-150.0,0.00013911,2]
[332078722,1720951859868,-150.0,0.00013916,2]
[332078723,1720951859878,-400.0,0.00013916,2]
[332078724,1720951859887,-555.6,0.00013917,2]
[332078725,1720951859898,-500.0,0.00013917,2]
[332078726,1720951859909,-549.33,0.00013917,2]
[332078727,1720951859920,-500.0,0.00013917,2]
[332078728,1720951859930,-663.42,0.00013917,2]
[332078729,1720951859941,-729.08,0.00013917,2]
[332078730,1720951859954,-500.0,0.00013917,2]
[332078731,1720951859964,-500.0,0.00013917,2]
[332078732,1720951859976,-500.0,0.00013917,2]
[332078733,1720951860127,-500.0,0.00013917,2]
[332078734,1720951860169,-500.0,0.00013917,2]
[332078735,1720951860179,-582.45520768,0.00013917,2]
[332078736,1720951860189,-501.64,0.00013917,2]
[332078737,1720951860199,-626.62,0.00013917,2]
[332078738,1720951860209,-500.0,0.00013917,2]
[332078739,1720951860219,-591.47,0.00013917,2]
[332078740,1720951860229,-500.0,0.00013917,2]
[332078741,1720951860238,-460.51492914,0.00013917,2]
[332078742,1720951860248,-500.0,0.00013917,2]
[332078743,1720951860258,-500.0,0.00013917,2]
[332078744,1720951860267,-500.0,0.00013917,2]
[332078745,1720951860277,-500.0,0.00013917,2]
[332078746,1720951860286,-500.0,0.00013917,2]
[332078747,1720951860297,-500.0,0.00013917,2]
[332078748,1720951860307,-752.06,0.00013917,2]
[332078749,1720951860318,-647.88,0.00013917,2]
[332078750,1720951860328,-500.0,0.00013917,2]
[332078751,1720951860338,-710.55,0.00013917,2]
[332078752,1720951860348,-500.0,0.00013917,2]
[332078753,1720951860359,-874.52,0.00013917,2]
[332078754,1720951860370,-561.67,0.00013917,2]
[332078755,1720951860381,-500.0,0.00013917,2]
[332078756,1720951860393,-513.18,0.00013917,2]
[332078757,1720951860402,-1099.1,0.00013917,2]
[332078758,1720951860412,-577.19,0.00013917,2]
[332078759,1720951860424,-1251.6,0.00013917,2]
[332078760,1720951860434,-500.0,0.00013917,2]
[332078761,1720951860446,-967.36,0.00013917,2]
[332078762,1720951860457,-500.0,0.00013917,2]
[332078763,1720951860469,-500.0,0.00013917,2]
[332078764,1720951860479,-500.0,0.00013917,2]
[332078765,1720951860488,-500.0,0.00013917,2]
[332078766,1720951860500,-500.0,0.00013917,2]
[332078767,1720951860512,-548.38,0.00013917,2]
[332078768,1720951860522,-792.28,0.00013917,2]
[332078769,1720951860531,-1047.45,0.00013917,2]
[332078770,1720951860540,-500.0,0.00013917,2]
[332078771,1720951860550,-500.0,0.00013917,2]
[332078772,1720951860560,-500.0,0.00013917,2]
[332078773,1720951860569,-819.25,0.00013917,2]
[332078774,1720951860579,-798.78,0.00013917,2]
[332078775,1720951860590,-500.0,0.00013917,2]
[332078776,1720951860599,-500.0,0.00013917,2]
[332078777,1720951860611,-702.1,0.00013917,2]
[332078778,1720951860621,-500.0,0.00013917,2]
[332078779,1720951860631,-500.0,0.00013917,2]
[332078780,1720951860641,-528.97,0.00013917,2]
[332078781,1720951860651,-663.77,0.00013917,2]
[332078782,1720951860660,-500.0,0.00013917,2]
[332078783,1720951860670,-567.41,0.00013917,2]
[332078784,1720951860680,-1164.4,0.00013917,2]
[332078785,1720951860689,-500.0,0.00013917,2]
[332078786,1720951860698,-531.52,0.00013917,2]
[332078787,1720951860708,-624.46,0.00013917,2]
[332078788,1720951860718,-769.33,0.00013917,2]
[332078789,1720951860727,-714.55,0.00013917,2]
[332078790,1720951860737,-500.0,0.00013917,2]
[332078791,1720951860746,-1278.3,0.00013917,2]
[332078792,1720951860756,-664.99,0.00013917,2]
[332078793,1720951860765,-664.32,0.00013917,2]
[332078794,1720951860774,-500.0,0.00013917,2]
[332078795,1720951860784,-1397.31,0.00013917,2]
[332078796,1720951860793,-1092.83,0.00013917,2]
[332078797,1720951860802,-500.0,0.00013917,2]
[332078798,1720951860812,-828.97,0.00013917,2]
[332078799,1720951860821,-500.0,0.00013917,2]
[332078800,1720951860831,-500.0,0.00013917,2]
[332078801,1720951860840,-281.25286759,0.00013917,2]
[332078802,1720951860850,-500.0,0.00013917,2]
[332078803,1720951860860,-391.61132301,0.00013917,2]
[332078804,1720951860869,-1121.78,0.00013917,2]
[332078805,1720951860879,-500.0,0.00013917,2]
[332078806,1720951860888,-500.0,0.00013917,2]
[332078807,1720951860897,-1221.87,0.00013917,2]
[332078808,1720951860907,-500.0,0.00013917,2]
[332078809,1720951860917,-669.46,0.00013917,2]
[332078810,1720951860926,-500.0,0.00013917,2]
[332078811,1720951860936,-500.0,0.00013917,2]
[332078812,1720951860947,-1065.74,0.00013917,2]
[332078813,1720951860958,-758.47,0.00013917,2]
[332078814,1720951860969,-500.0,0.00013917,2]
[332078815,1720951860979,-946.33,0.00013917,2]
[332078816,1720951860989,-524.85,0.00013917,2]
[332078817,1720951860998,-863.16,0.00013917,2]
[332078818,1720951861007,-500.0,0.00013917,2]
[332078819,1720951861017,-698.91,0.00013917,2]
[332078820,1720951861028,-500.0,0.00013917,2]
[332078821,1720951861038,-500.0,0.00013917,2]
[332078822,1720951861047,-695.87,0.00013917,2]
[332078823,1720951861057,-500.0,0.00013917,2]
[332078824,1720951861066,-500.0,0.00013917,2]
[332078825,1720951861075,-500.0,0.00013917,2]
[332078826,1720951861085,-830.28,0.00013917,2]
[332078827,1720951861095,-509.11,0.00013917,2]
[332078828,1720951861104,-500.0,0.00013917,2]
[332078829,1720951861114,-500.0,0.00013917,2]
[332078830,1720951861124,-1028.67,0.00013917,2]
[332078831,1720951861134,-756.14,0.00013917,2]
[332078832,1720951861145,-684.67,0.00013917,2]
[332078833,1720951861155,-859.96,0.00013917,2]
[332078834,1720951861166,-500.0,0.00013917,2]
[332078835,1720951861176,-500.0,0.00013917,2]
[332078836,1720951861187,-597.62,0.00013917,2]
[332078837,1720951861198,-500.0,0.00013917,2]
[332078838,1720951861208,-500.0,0.00013917,2]
[332078839,1720951861218,-500.0,0.00013917,2]
[332078840,1720951861227,-943.43,0.00013917,2]
[332078841,1720951861238,-1042.69,0.00013917,2]
[332078842,1720951861249,-500.0,0.00013917,2]
[332078843,1720951861259,-500.0,0.00013917,2]
[332078844,1720951861269,-575.87,0.00013917,2]
[332078845,1720951861279,-500.0,0.00013917,2]
[332078846,1720951861291,-1061.08,0.00013917,2]
[332078847,1720951861302,-640.1,0.00013917,2]
[332078848,1720951861313,-1317.61,0.00013917,2]
[332078849,1720951861322,-1072.0,0.00013917,2]
[332078850,1720951861331,-500.0,0.00013917,2]
[332078851,1720951861341,-1075.11,0.00013917,2]
[332078852,1720951861350,-500.0,0.00013917,2]
[332078853,1720951861361,-779.93,0.00013917,2]
[332078854,1720951861370,-500.0,0.00013917,2]
[332078855,1720951861379,-708.71,0.00013917,2]
[332078856,1720951861389,-705.94,0.00013917,2]
[332078857,1720951861400,-500.0,0.00013917,2]
[332078858,1720951861409,-879.91,0.00013917,2]
[332078859,1720951861420,-500.0,0.00013917,2]
[332078860,1720951861432,-642.32,0.00013917,2]
[332078861,1720951861442,-500.0,0.00013917,2]
[332078862,1720951861451,-500.0,0.00013917,2]
[332078863,1720951861461,-500.0,0.00013917,2]
[332078864,1720951861473,-500.0,0.00013917,2]
[332078865,1720951861484,-500.0,0.00013917,2]
[332078866,1720951861495,-500.0,0.00013917,2]
[332078867,1720951861505,-1009.1,0.00013917,2]
[332078868,1720951861515,-500.0,0.00013917,2]
[332078869,1720951861526,-500.0,0.00013917,2]
[332078870,1720951861535,-500.0,0.00013917,2]
[332078871,1720951861544,-500.0,0.00013917,2]
[332078872,1720951861554,-500.0,0.00013917,2]
[332078873,1720951861563,-500.0,0.00013917,2]
[332078874,1720951861572,-656.61,0.00013917,2]
[332078875,1720951861582,-1346.69,0.00013917,2]
[332078876,1720951861591,-395.76239593,0.00013917,2]
[332078877,1720951861601,-1135.02,0.00013917,2]
[332078878,1720951861612,-552.77,0.00013917,2]
[332078879,1720951861621,-814.17,0.00013917,2]
[332078880,1720951861630,-500.0,0.00013917,2]
[332078881,1720951861640,-500.0,0.00013917,2]
[332078882,1720951861650,-819.52,0.00013917,2]
[332078883,1720951861659,-696.38,0.00013917,2]
[332078884,1720951861669,-500.0,0.00013917,2]
[332078885,1720951861678,-809.82,0.00013917,2]
[332078886,1720951861687,-501.43,0.00013917,2]
[332078887,1720951861697,-565.6,0.00013917,2]
[332078888,1720951861706,-500.0,0.00013917,2]
[332078889,1720951861716,-645.03,0.00013917,2]
[332078890,1720951861726,-500.0,0.00013917,2]
[332078891,1720951861735,-500.0,0.00013917,2]
[332078892,1720951861744,-636.65,0.00013917,2]
[332078893,1720951861754,-500.0,0.00013917,2]
[332078894,1720951861763,-624.0,0.00013917,2]
[332078895,1720951861773,-540.31,0.00013917,2]
[332078896,1720951861782,-500.0,0.00013917,2]
[332078897,1720951861792,-590.91,0.00013917,2]
[332078898,1720951861802,-591.77,0.00013917,2]
[332078899,1720951861812,-500.0,0.00013917,2]
[332078900,1720951861821,-500.0,0.00013917,2]
[332078901,1720951861831,-500.0,0.00013917,2]
[332078902,1720951861841,-490.39,0.00013917,2]
[332078903,1720951861850,-500.0,0.00013917,2]
[332078904,1720951861860,-500.0,0.00013917,2]
[332078905,1720951861869,-500.0,0.00013917,2]
[332078906,1720951861878,-679.15,0.00013917,2]
[332078907,1720951861887,-500.0,0.00013917,2]
[332078908,1720951861896,-500.0,0.00013917,2]
[332078909,1720951861905,-500.0,0.00013917,2]
[332078910,1720951861914,-709.17,0.00013917,2]
[332078911,1720951861923,-500.0,0.00013917,2]
[332078912,1720951861933,-500.0,0.00013917,2]
[332078913,1720951861942,-500.0,0.00013917,2]
[332078914,1720951861954,-500.0,0.00013917,2]
[332078915,1720951861964,-500.0,0.00013917,2]
[332078916,1720951861973,-500.0,0.00013917,2]
[332078917,1720951861983,-529.2,0.00013917,2]
[332078918,1720951861993,-543.12,0.00013917,2]
[332078919,1720951862004,-687.6,0.00013917,2]
[332078920,1720951862015,-500.0,0.00013917,2]
[332078921,1720951862025,-500.0,0.00013917,2]
[332078922,1720951862035,-500.0,0.00013917,2]
[332078923,1720951862044,-579.49,0.00013917,2]
[332078924,1720951862053,-500.0,0.00013917,2]
[332078925,1720951862063,-500.0,0.00013917,2]
[332078926,1720951862076,-845.16,0.00013917,2]
[332078927,1720951862087,-500.0,0.00013917,2]
[332078928,1720951862098,-218.06489981,0.00013917,2]
[332078929,1720951862109,-777.06,0.00013917,2]
[332078930,1720951862119,-976.24,0.00013917,2]
[332078931,1720951862128,-1026.17,0.00013917,2]
[332078932,1720951862138,-502.59,0.00013917,2]
[332078933,1720951862147,-766.72,0.00013917,2]
[332078934,1720951862157,-567.02,0.00013917,2]
[332078935,1720951862168,-500.0,0.00013917,2]
[332078936,1720951862180,-500.0,0.00013917,2]
[332078937,1720951862189,-557.06,0.00013917,2]
[332078938,1720951862200,-500.0,0.00013917,2]
[332078939,1720951862211,-500.0,0.00013917,2]
[332078940,1720951862221,-500.0,0.00013917,2]
[332078941,1720951862233,-468.97050061,0.00013917,2]
[332078942,1720951862243,-752.08,0.00013917,2]
[332078943,1720951862254,-833.79,0.00013917,2]
[332078944,1720951862265,-500.0,0.00013917,2]
[332078945,1720951862275,-500.0,0.00013917,2]
[332078946,1720951862286,-523.22,0.00013917,2]
[332078947,1720951862297,-671.16,0.00013917,2]
[332078948,1720951862306,-664.48,0.00013917,2]
[332078949,1720951862317,-765.3,0.00013917,2]
[332078950,1720951862328,-862.73,0.00013917,2]
[332078951,1720951862340,-500.0,0.00013917,2]
[332078952,1720951862351,-500.0,0.00013917,2]
[332078953,1720951862363,-963.85,0.00013917,2]
[332078954,1720951862372,-623.98356988,0.00013917,2]
[332078955,1720951862381,-500.0,0.00013917,2]
[332078956,1720951862394,-500.0,0.00013917,2]
[332078957,1720951862403,-500.0,0.00013917,2]
[332078958,1720951862412,-570.85,0.00013917,2]
[332078959,1720951862424,-535.49,0.00013917,2]
[332078960,1720951862435,-500.0,0.00013917,2]
[332078961,1720951862444,-745.48,0.00013917,2]
[332078962,1720951862455,-500.0,0.00013917,2]
[332078963,1720951862464,-878.82,0.00013917,2]
[332078964,1720951862473,-500.0,0.00013917,2]
[332078965,1720951862483,-500.0,0.00013917,2]
[332078966,1720951862493,-519.18177611,0.00013917,2]
[332078967,1720951862503,-500.0,0.00013917,2]
[332078968,1720951862514,-500.0,0.00013917,2]
[332078969,1720951862523,-745.6,0.00013917,2]
[332078970,1720951862534,-685.51,0.00013917,2]
[332078971,1720951862545,-500.0,0.00013917,2]
[332078972,1720951862557,-500.0,0.00013917,2]
[332078973,1720951862566,-3662.07,0.00013917,2]
[332078974,1720951862576,-626.41,0.00013917,2]
[332078975,1720951862586,-756.11,0.00013917,2]
[332078976,1720951862597,-606.6,0.00013917,2]
[332078977,1720951862607,-1030.73,0.00013917,2]
[332078978,1720951862616,-648.06,0.00013917,2]
[332078979,1720951862626,-500.0,0.00013917,2]
[332078980,1720951862636,-943.23,0.00013917,2]
[332078981,1720951862646,-962.58,0.00013917,2]
[332078982,1720951862655,-500.0,0.00013917,2]
[332078983,1720951862664,-504.73,0.00013917,2]
[332078984,1720951862674,-500.0,0.00013917,2]
[332078985,1720951862684,-1326.92,0.00013917,2]
[332078986,1720951862695,-870.16,0.00013917,2]
[332078987,1720951862758,-500.0,0.00013917,2]
[332078988,1720951862770,-1095.66,0.00013917,2]
[332078989,1720951862780,-685.36,0.00013917,2]
[332078990,1720951862789,-500.0,0.00013917,2]
[332078991,1720951862798,-500.0,0.00013917,2]
[332078992,1720951862807,-500.0,0.00013917,2]
[332078993,1720951862816,-500.0,0.00013917,2]
[332078994,1720951862825,-544.57,0.00013917,2]
[332078995,1720951862834,-571.71,0.00013917,2]
[332078996,1720951862843,-644.56,0.00013917,2]
[332078997,1720951862852,-902.0,0.00013917,2]
[332078998,1720951862863,-500.0,0.00013917,2]
[332078999,1720951862872,-500.0,0.00013917,2]
[332079000,1720951862881,-737.03,0.00013917,2]
[332079001,1720951862890,-500.0,0.00013917,2]
[332079002,1720951862899,-788.7,0.00013917,2]
[332079003,1720951862909,-500.0,0.00013917,2]
[332079004,1720951862919,-1235.68,0.00013917,2]
[332079005,1720951862928,-578.84,0.00013917,2]
[332079006,1720951862937,-500.0,0.00013917,2]
[332079007,1720951862946,-500.0,0.00013917,2]
[332079008,1720951862961,-500.0,0.00013917,2]
[332079009,1720951862971,-500.0,0.00013917,2]
[332079010,1720951862982,-782.57,0.00013917,2]
[332079011,1720951862995,-1041.85,0.00013917,2]
[332079012,1720951863007,-500.0,0.00013917,2]
[332079013,1720951863016,-786.63,0.00013917,2]
[332079014,1720951863026,-500.0,0.00013917,2]
[332079015,1720951863037,-500.0,0.00013917,2]
[332079016,1720951863047,-500.0,0.00013917,2]
[332079017,1720951863057,-500.0,0.00013917,2]
[332079018,1720951863066,-761.83,0.00013917,2]
[332079019,1720951863076,-979.99,0.00013917,2]
[332079020,1720951863085,-507.59,0.00013917,2]
[332079021,1720951863094,-500.0,0.00013917,2]
[332079022,1720951863103,-500.0,0.00013917,2]
[332079023,1720951863115,-648.78,0.00013917,2]
[332079024,1720951863124,-500.0,0.00013917,2]
[332079025,1720951863133,-500.0,0.00013917,2]
[332079026,1720951863142,-815.44,0.00013917,2]
[332079027,1720951863152,-1018.56,0.00013917,2]
[332079028,1720951863161,-588.25,0.00013917,2]
[332079029,1720951863171,-500.0,0.00013917,2]
[332079030,1720951863180,-867.79,0.00013917,2]
[332079031,1720951863190,-500.0,0.00013917,2]
[332079032,1720951863199,-500.0,0.00013917,2]
[332079033,1720951863209,-529.95,0.00013917,2]
[332079034,1720951863218,-890.67,0.00013917,2]
[332079035,1720951863228,-1085.2,0.00013917,2]
[332079036,1720951863237,-500.0,0.00013917,2]
[332079037,1720951863247,-500.0,0.00013917,2]
[332079038,1720951863256,-1057.73,0.00013917,2]
[332079039,1720951863266,-922.01,0.00013917,2]
[332079040,1720951863275,-848.59,0.00013917,2]
[332079041,1720951863285,-5795.09,0.00013917,2]
[332079042,1720951863294,-558.16,0.00013917,2]
[332079043,1720951863304,-572.85,0.00013917,2]
[332079044,1720951863314,-500.0,0.00013917,2]
[332079045,1720951863324,-1289.76,0.00013917,2]
[332079046,1720951863334,-645.01,0.00013917,2]
[332079047,1720951863344,-500.0,0.00013917,2]
[332079048,1720951863354,-500.0,0.00013917,2]
[332079049,1720951863363,-684.4,0.00013917,2]
[332079050,1720951863373,-1167.06,0.00013917,2]
[332079051,1720951863382,-882.4,0.00013917,2]
[332079052,1720951863392,-624.92,0.00013917,2]
[332079053,1720951863401,-890.83,0.00013917,2]
[332079054,1720951863410,-500.0,0.00013917,2]
[332079055,1720951863419,-502.4,0.00013917,2]
[332079056,1720951863430,-1305.0,0.00013917,2]
[332079057,1720951863440,-500.0,0.00013917,2]
[332079058,1720951863450,-500.0,0.00013917,2]
[332079059,1720951863459,-500.0,0.00013917,2]
[332079060,1720951863469,-840.57,0.00013917,2]
[332079061,1720951863478,-541.49,0.00013917,2]
[332079062,1720951863487,-500.0,0.00013917,2]
[332079063,1720951863498,-500.0,0.00013917,2]
[332079064,1720951863507,-500.0,0.00013917,2]
[332079065,1720951863517,-1274.86,0.00013917,2]
[332079066,1720951863527,-902.94,0.00013917,2]
[332079067,1720951863537,-1012.94,0.00013917,2]
[332079068,1720951863547,-500.0,0.00013917,2]
[332079069,1720951863556,-500.0,0.00013917,2]
[332079070,1720951863566,-796.26,0.00013917,2]
[332079071,1720951863575,-751.72,0.00013917,2]
[332079072,1720951863585,-1085.21,0.00013917,2]
[332079073,1720951863595,-500.0,0.00013917,2]
[332079074,1720951863604,-500.0,0.00013917,2]
[332079075,1720951863615,-617.3,0.00013917,2]
[332079076,1720951863625,-640.64,0.00013917,2]
[332079077,1720951863635,-1090.98,0.00013917,2]
[332079078,1720951863645,-500.0,0.00013917,2]
[332079079,1720951863655,-2359.97,0.00013917,2]
[332079080,1720951863664,-500.0,0.00013917,2]
[332079081,1720951863674,-500.0,0.00013917,2]
[332079082,1720951863684,-500.0,0.00013917,2]
[332079083,1720951863693,-500.0,0.00013917,2]
[332079084,1720951863703,-636.56,0.00013917,2]
[332079085,1720951863713,-548.16,0.00013917,2]
[332079086,1720951863723,-500.0,0.00013917,2]
[332079087,1720951863733,-500.0,0.00013917,2]
[332079088,1720951863743,-500.0,0.00013917,2]
[332079089,1720951863752,-513.31,0.00013917,2]
[332079090,1720951863762,-500.0,0.00013917,2]
[332079091,1720951863773,-500.0,0.00013917,2]
[332079092,1720951863784,-709.93,0.00013917,2]
[332079093,1720951863794,-2667.22,0.00013917,2]
[332079094,1720951863805,-736.7,0.00013917,2]
[332079095,1720951863815,-500.0,0.00013917,2]
[332079096,1720951863825,-647.01,0.00013917,2]
[332079097,1720951863835,-770.13,0.00013917,2]
[332079098,1720951863845,-973.96,0.00013917,2]
[332079099,1720951863854,-1534.07,0.00013917,2]
[332079100,1720951863865,-648.57,0.00013917,2]
[332079101,1720951863874,-500.0,0.00013917,2]
[332079102,1720951863883,-2978.27,0.00013917,2]
[332079103,1720951863893,-569.7,0.00013917,2]
[332079104,1720951863903,-500.0,0.00013917,2]
[332079105,1720951863912,-762.45,0.00013917,2]
[332079106,1720951863922,-500.0,0.00013917,2]
[332079107,1720951863932,-867.28,0.00013917,2]
[332079108,1720951863942,-500.0,0.00013917,2]
[332079109,1720951863957,-500.0,0.00013917,2]
[332079110,1720951863967,-500.0,0.00013917,2]
[332079111,1720951863976,-500.0,0.00013917,2]
[332079112,1720951863986,-1712.4,0.00013917,2]
[332079113,1720951863996,-838.29,0.00013917,2]
[332079114,1720951864006,-1049.04,0.00013917,2]
[332079115,1720951864016,-500.0,0.00013917,2]
[332079116,1720951864025,-1389.66,0.00013917,2]
[332079117,1720951864043,-500.0,0.00013917,2]
[332079118,1720951864053,-626.02,0.00013917,2]
[332079119,1720951864063,-769.02,0.00013917,2]
[332079120,1720951864073,-741.36,0.00013917,2]
[332079121,1720951864083,-500.0,0.00013917,2]